bitfinex-derivatives/quotes_BTCF0:USTF0_20251228
["timestamp","ask_amount","ask_price","bid_price","bid_amount"]
[1766900831671,0.02410408,87721.0,87712.0,0.0114088]
[1766900831970,0.05708,87725.0,87712.0,0.0114088]
[1766900831971,0.02410408,87720.0,87712.0,0.0114088]
[1766900832170,0.02410408,87719.0,87712.0,0.0114088]
[1766900832380,0.05708,87725.0,87714.0,0.0114085]
[1766900832579,0.02410749,87724.0,87714.0,0.0114085]
[1766900832775,0.02410749,87723.0,87714.0,0.0114085]
[1766900832984,0.02410749,87722.0,87714.0,0.0114085]
[1766900833183,0.02410749,87721.0,87714.0,0.0114085]
[1766900833478,0.02410749,87720.0,87714.0,0.0114085]
[1766900833682,0.02410749,87719.0,87714.0,0.0114085]
[1766900833884,0.05708,87725.0,87714.0,0.0114085]
[1766900834182,0.02410776,87724.0,87714.0,0.0114085]
[1766900834382,0.02410776,87723.0,87714.0,0.0114085]
[1766900834681,0.02410776,87722.0,87714.0,0.0114085]
[1766900834880,0.02410776,87721.0,87714.0,0.0114085]
[1766900835083,0.05708,87725.0,87714.0,0.0114085]
[1766900835285,0.02410798,87724.0,87714.0,0.0114085]
[1766900835481,0.02410798,87723.0,87714.0,0.0114085]
[1766900835683,0.02410798,87722.0,87714.0,0.0114085]
[1766900835980,0.02410798,87721.0,87714.0,0.0114085]
[1766900836177,0.05708,87725.0,87714.0,0.0114085]
[1766900836373,0.02410845,87724.0,87714.0,0.0114085]
[1766900836580,0.02410845,87723.0,87714.0,0.0114085]
[1766900836781,0.02410845,87722.0,87714.0,0.0114085]
[1766900837082,0.02410845,87721.0,87704.0,0.15404]
[1766900837283,0.05708,87725.0,87704.0,0.15404]
[1766900837482,0.02410868,87724.0,87705.0,0.11400168]
[1766900837785,0.02410868,87723.0,87711.0,0.0114089]
[1766900837986,0.02410868,87722.0,87711.0,0.0114089]
[1766900838186,0.02410868,87721.0,87711.0,0.0114089]
[1766900838382,0.05708,87725.0,87711.0,0.0114089]
[1766900838583,0.02410893,87724.0,87711.0,0.0114089]
[1766900838782,0.02410893,87723.0,87711.0,0.0114089]
[1766900838985,0.02410893,87722.0,87711.0,0.0114089]
[1766900839186,0.02410893,87721.0,87711.0,0.0114089]
[1766900839487,0.05708,87725.0,87711.0,0.0114089]
[1766900839686,0.02410923,87724.0,87711.0,0.0114089]
[1766900839880,0.02410923,87723.0,87711.0,0.0114089]
[1766900840080,0.02410923,87722.0,87711.0,0.0114089]
[1766900840284,0.02410923,87721.0,87711.0,0.0114089]
[1766900840587,0.05708,87725.0,87711.0,0.0114089]
[1766900840786,0.02410956,87724.0,87711.0,0.0114089]
[1766900840987,0.02410956,87723.0,87711.0,0.0114089]
[1766900841284,0.02410956,87722.0,87711.0,0.0114089]
[1766900841483,0.02410956,87721.0,87711.0,0.0114089]
[1766900841684,0.05708,87725.0,87711.0,0.0114089]
[1766900841884,0.02411012,87724.0,87711.0,0.0114089]
[1766900842085,0.02411012,87723.0,87711.0,0.0114089]
[1766900842286,0.02411012,87722.0,87711.0,0.0114089]
[1766900842483,0.02411012,87721.0,87711.0,0.0114089]
[1766900842685,0.05708,87725.0,87711.0,0.0114089]
[1766900842883,0.02411047,87724.0,87711.0,0.0114089]
[1766900843184,0.02411047,87723.0,87711.0,0.0114089]
[1766900843382,0.02411047,87722.0,87711.0,0.0114089]
[1766900843582,0.02411047,87721.0,87711.0,0.0114089]
[1766900843779,0.05708,87725.0,87711.0,0.0114089]
[1766900844086,0.02411049,87724.0,87711.0,0.0114089]
[1766900844387,0.02411049,87723.0,87713.0,0.0114087]
[1766900844688,0.02411049,87722.0,87713.0,0.0114087]
[1766900844888,0.02411049,87721.0,87713.0,0.0114087]
[1766900845079,0.05708,87725.0,87715.0,0.0114084]
[1766900845279,0.02411065,87724.0,87715.0,0.0114084]
[1766900845480,0.02411065,87723.0,87715.0,0.0114084]
[1766900845688,0.02411065,87722.0,87715.0,0.0114084]
[1766900845986,0.02411065,87721.0,87715.0,0.0114084]
[1766900846192,0.05708,87725.0,87715.0,0.0114084]
[1766900846386,0.02411088,87724.0,87715.0,0.0114084]
[1766900846585,0.02411088,87723.0,87712.0,0.0114088]
[1766900846780,0.02411088,87722.0,87712.0,0.0114088]
[1766900846983,0.02411088,87721.0,87712.0,0.0114088]
[1766900847281,0.05708,87725.0,87712.0,0.0114088]
[1766900847486,0.02411107,87724.0,87712.0,0.0114088]
[1766900847680,0.02411107,87723.0,87712.0,0.0114088]
[1766900847979,0.02411107,87722.0,87712.0,0.0114088]
[1766900848180,0.02411107,87721.0,87712.0,0.0114088]
[1766900848381,0.05708,87725.0,87712.0,0.0114088]
[1766900848578,0.0241113,87724.0,87712.0,0.0114088]
[1766900848779,0.0241113,87723.0,87712.0,0.0114088]
[1766900848984,0.0241113,87722.0,87712.0,0.0114088]
[1766900849183,0.0241113,87721.0,87712.0,0.0114088]
[1766900849384,0.05708,87725.0,87712.0,0.0114088]
[1766900849683,0.02411161,87724.0,87712.0,0.0114088]
[1766900849883,0.02411161,87723.0,87712.0,0.0114088]
[1766900850088,0.02411161,87722.0,87712.0,0.0114088]
[1766900850288,0.02411161,87721.0,87712.0,0.0114088]
[1766900850490,0.05708,87725.0,87712.0,0.0114088]
[1766900850689,0.02411163,87724.0,87712.0,0.0114088]
[1766900850892,0.02411163,87723.0,87712.0,0.0114088]
[1766900851092,0.02411163,87722.0,87712.0,0.0114088]
[1766900851389,0.02411163,87721.0,87712.0,0.0114088]
[1766900851579,0.05708,87725.0,87712.0,0.0114088]
[1766900851777,0.02411164,87724.0,87712.0,0.0114088]
[1766900851987,0.02411164,87723.0,87712.0,0.0114088]
[1766900852188,0.05708,87725.0,87712.0,0.0114088]
[1766900852189,0.02411164,87722.0,87712.0,0.0114088]
[1766900852389,0.02411164,87721.0,87712.0,0.0114088]
[1766900852592,0.05708,87725.0,87712.0,0.0114088]
[1766900852792,0.02411164,87724.0,87712.0,0.0114088]
[1766900852980,0.05708,87725.0,87712.0,0.0114088]
[1766900852981,0.02411164,87723.0,87712.0,0.0114088]
[1766900853179,0.02411164,87722.0,87712.0,0.0114088]
[1766900853386,0.02411164,87721.0,87712.0,0.0114088]
[1766900853586,0.05708,87725.0,87712.0,0.0114088]
[1766900853793,0.0241303,87724.0,87712.0,0.0114088]
[1766900853993,0.0241303,87723.0,87712.0,0.0114088]
[1766900854193,0.0241303,87722.0,87712.0,0.0114088]
[1766900854391,0.0241303,87721.0,87712.0,0.0114088]
[1766900854691,0.05708,87725.0,87712.0,0.0114088]
[1766900854879,0.02413023,87724.0,87712.0,0.0114088]
[1766900855083,0.02413023,87723.0,87712.0,0.0114088]
[1766900855283,0.05708,87725.0,87712.0,0.0114088]
[1766900855284,0.02413023,87722.0,87712.0,0.0114088]
[1766900855481,0.02413023,87721.0,87712.0,0.0114088]
[1766900855782,0.05708,87725.0,87712.0,0.0114088]
[1766900855986,0.02413026,87724.0,87712.0,0.0114088]
[1766900856187,0.02413026,87723.0,87712.0,0.0114088]
[1766900856489,0.02413026,87722.0,87712.0,0.0114088]
[1766900856797,0.02413026,87721.0,87712.0,0.0114088]
[1766900856994,0.05708,87725.0,87712.0,0.0114088]
[1766900857197,0.02413019,87724.0,87712.0,0.0114088]
[1766900857399,0.02413019,87723.0,87712.0,0.0114088]
[1766900857592,0.02413019,87722.0,87712.0,0.0114088]
[1766900857792,0.02413019,87721.0,87712.0,0.0114088]
[1766900857999,0.05708,87725.0,87712.0,0.0114088]
[1766900858200,0.02413014,87724.0,87712.0,0.0114088]
[1766900858398,0.02413014,87723.0,87712.0,0.0114088]
[1766900858697,0.02413014,87722.0,87707.0,0.09696]
[1766900858897,0.02413014,87721.0,87707.0,0.09696]
[1766900859201,0.02413014,87720.0,87707.0,0.09696]
[1766900859402,0.05708,87725.0,87708.0,0.0114093]
[1766900859604,0.02413039,87724.0,87708.0,0.0114093]
[1766900859905,0.02413039,87723.0,87708.0,0.0114093]
[1766900860093,0.02413039,87722.0,87708.0,0.0114093]
[1766900860295,0.02413039,87721.0,87708.0,0.0114093]
[1766900860495,0.02413039,87720.0,87708.0,0.0114093]
[1766900860802,0.05708,87725.0,87708.0,0.0114093]
[1766900861005,0.02413008,87724.0,87708.0,0.0114093]
[1766900861207,0.02413008,87723.0,87708.0,0.0114093]
[1766900861502,0.02413008,87722.0,87708.0,0.0114093]
[1766900861705,0.02413008,87721.0,87708.0,0.0114093]
[1766900861904,0.02413008,87720.0,87708.0,0.0114093]
[1766900862106,0.05708,87725.0,87708.0,0.0114093]
[1766900862309,0.02412984,87724.0,87708.0,0.0114093]
[1766900862608,0.02412984,87723.0,87708.0,0.0114093]
[1766900862909,0.02412984,87722.0,87708.0,0.0114093]
[1766900863108,0.02412984,87721.0,87708.0,0.0114093]
[1766900863310,0.02412984,87720.0,87708.0,0.0114093]
[1766900863510,0.05708,87725.0,87708.0,0.0114093]
[1766900863714,0.02412944,87724.0,87708.0,0.0114093]
[1766900863906,0.02412944,87723.0,87708.0,0.0114093]
[1766900864107,0.02412944,87722.0,87708.0,0.0114093]
[1766900864307,0.02412944,87721.0,87708.0,0.0114093]
[1766900864507,0.02412944,87720.0,87708.0,0.0114093]
[1766900864708,0.05708,87725.0,87708.0,0.0114093]
[1766900864909,0.02412927,87724.0,87708.0,0.0114093]
[1766900865108,0.02412927,87723.0,87708.0,0.0114093]
[1766900865308,0.02412927,87722.0,87708.0,0.0114093]
[1766900865509,0.02412927,87721.0,87708.0,0.0114093]
[1766900865709,0.02412927,87720.0,87708.0,0.0114093]
[1766900865914,0.0114074,87724.0,87708.0,0.0114093]
[1766900866114,0.02412911,87723.0,87708.0,0.0114093]
[1766900866316,0.02412911,87722.0,87706.0,0.09696]
[1766900866612,0.02412911,87721.0,87709.0,0.0114092]
[1766900866812,0.02412911,87720.0,87709.0,0.0114092]
[1766900867015,0.05708,87725.0,87709.0,0.0114092]
[1766900867214,0.02412897,87724.0,87709.0,0.0114092]
[1766900867513,0.02412897,87723.0,87709.0,0.0114092]
[1766900867703,0.02412897,87722.0,87709.0,0.0114092]
[1766900867908,0.02412897,87721.0,87709.0,0.0114092]
[1766900868202,0.02412897,87720.0,87709.0,0.0114092]
[1766900868501,0.05708,87725.0,87709.0,0.0114092]
[1766900868706,0.02412874,87724.0,87709.0,0.0114092]
[1766900868915,0.02412874,87723.0,87709.0,0.0114092]
[1766900869213,0.02412874,87722.0,87709.0,0.0114092]
[1766900869414,0.02412874,87721.0,87709.0,0.0114092]
[1766900869614,0.02412874,87720.0,87709.0,0.0114092]
[1766900869915,0.05708,87725.0,87709.0,0.0114092]
[1766900870105,0.02412865,87724.0,87709.0,0.0114092]
[1766900870306,0.02412865,87723.0,87709.0,0.0114092]
[1766900870506,0.02412865,87722.0,87709.0,0.0114092]
[1766900870707,0.02412865,87721.0,87709.0,0.0114092]
[1766900870914,0.02412865,87720.0,87709.0,0.0114092]
[1766900871115,0.05708,87725.0,87709.0,0.0114092]
[1766900871305,0.0241286,87724.0,87709.0,0.0114092]
[1766900871509,0.0241286,87723.0,87709.0,0.0114092]
[1766900871713,0.0241286,87722.0,87709.0,0.0114092]
[1766900872023,0.0241286,87721.0,87710.0,0.11451847]
[1766900872208,0.0241286,87720.0,87710.0,0.11451847]
[1766900872408,0.05708,87725.0,87710.0,0.11451847]
[1766900872707,0.02412858,87724.0,87710.0,0.11451847]
[1766900872907,0.02412858,87723.0,87710.0,0.11451847]
[1766900873105,0.02412858,87722.0,87710.0,0.11451847]
[1766900873312,0.02412858,87721.0,87710.0,0.11451847]
[1766900873513,0.02412858,87720.0,87710.0,0.11451847]
[1766900873812,0.02412856,87719.0,87710.0,0.11451847]
[1766900874014,0.05708,87725.0,87710.0,0.11451847]
[1766900874212,0.02412856,87724.0,87710.0,0.11451847]
[1766900874414,0.02412856,87723.0,87710.0,0.11451847]
[1766900874718,0.02412856,87722.0,87710.0,0.11451847]
[1766900874919,0.02412856,87721.0,87710.0,0.11451847]
[1766900875118,0.05708,87725.0,87710.0,0.11451847]
[1766900875119,0.02412856,87720.0,87710.0,0.11451847]
[1766900875423,0.02412856,87719.0,87710.0,0.11451847]
[1766900875624,0.05708,87725.0,87710.0,0.11451847]
[1766900875815,0.02412844,87724.0,87710.0,0.11451847]
[1766900876016,0.02412844,87723.0,87710.0,0.11451847]
[1766900876216,0.02412844,87722.0,87710.0,0.11451847]
[1766900876517,0.05708,87725.0,87710.0,0.11451847]
[1766900876518,0.02412844,87721.0,87710.0,0.11451847]
[1766900876715,0.02412844,87720.0,87710.0,0.11451847]
[1766900876920,0.02412844,87719.0,87710.0,0.11451847]
[1766900877121,0.05708,87725.0,87710.0,0.11451847]
[1766900877322,0.02412844,87724.0,87710.0,0.11451847]
[1766900877525,0.02412844,87723.0,87710.0,0.11451847]
[1766900877724,0.02412844,87722.0,87710.0,0.11451847]
[1766900878021,0.02412844,87721.0,87710.0,0.11451847]
[1766900878322,0.02412844,87720.0,87711.0,0.011409]
[1766900878623,0.02412844,87719.0,87711.0,0.011409]
[1766900878922,0.05708,87725.0,87711.0,0.011409]
[1766900879123,0.02412846,87724.0,87711.0,0.011409]
[1766900879309,0.02412846,87723.0,87711.0,0.011409]
[1766900879514,0.02412846,87722.0,87711.0,0.011409]
[1766900879722,0.02412846,87721.0,87711.0,0.011409]
[1766900879922,0.02412846,87720.0,87711.0,0.011409]
[1766900880221,0.02412846,87719.0,87715.0,0.0015623]
[1766900880415,0.05708,87725.0,87715.0,0.0015623]
[1766900880615,0.02412851,87724.0,87715.0,0.0015623]
[1766900880822,0.02412851,87723.0,87715.0,0.0015623]
[1766900881023,0.02412851,87722.0,87715.0,0.0015623]
[1766900881222,0.02412851,87721.0,87711.0,0.011409]
[1766900881525,0.02412851,87720.0,87718.0,0.0015623]
[1766900881721,0.05708,87725.0,87718.0,0.0015623]
[1766900881722,0.02412851,87719.0,87718.0,0.0015623]
[1766900881916,0.02412851,87724.0,87718.0,0.0015623]
[1766900882522,0.02412851,87724.0,87710.0,0.18300757]
[1766900883128,0.02412851,87724.0,87712.0,0.0114088]
[1766900886231,0.02412851,87724.0,87710.0,0.05708]
[1766900886530,0.02412851,87724.0,87710.0,0.17159847]
[1766900886829,0.02412851,87724.0,87710.0,0.05708]
[1766900887415,0.02412851,87724.0,87710.0,0.17159847]
[1766900888529,0.02412851,87724.0,87710.0,0.05708]
[1766900888730,0.02412851,87724.0,87710.0,0.17159847]
[1766900892033,0.02412851,87724.0,87711.0,0.011409]
[1766900893232,0.02412851,87724.0,87710.0,0.17159847]
[1766900893435,0.02412851,87724.0,87710.0,0.05708]
[1766900899838,0.02412851,87724.0,87710.0,0.17159847]
[1766900901141,0.02412851,87724.0,87711.0,0.011409]
[1766900905144,0.02412851,87724.0,87710.0,0.05708]
[1766900905343,0.02412851,87724.0,87706.0,0.15404]
[1766900905642,0.03553581,87724.0,87710.0,0.0114091]
[1766900905838,0.02412851,87723.0,87710.0,0.0114091]
[1766900909749,0.02412851,87722.0,87706.0,0.15404]
[1766900909949,0.02412851,87721.0,87706.0,0.15404]
[1766900910249,0.05708,87720.0,87711.0,0.011409]
[1766900911550,0.00017101,87726.0,87713.0,0.0114087]
[1766900911747,0.08155412,87725.0,87713.0,0.0114087]
[1766900911950,0.02447412,87724.0,87713.0,0.0114087]
[1766900912150,0.02447412,87723.0,87713.0,0.0114087]
[1766900912351,0.02447412,87722.0,87713.0,0.0114087]
[1766900912552,0.02447412,87721.0,87713.0,0.0114087]
[1766900912754,0.15404,87725.0,87713.0,0.0114087]
[1766900912953,0.02447412,87724.0,87713.0,0.0114087]
[1766900913145,0.02447412,87723.0,87713.0,0.0114087]
[1766900913344,0.02447412,87722.0,87713.0,0.0114087]
[1766900913544,0.02447412,87721.0,87713.0,0.0114087]
[1766900913752,0.15404,87725.0,87713.0,0.0114087]
[1766900913951,0.02457438,87724.0,87713.0,0.0114087]
[1766900914150,0.02457438,87723.0,87713.0,0.0114087]
[1766900914351,0.02457438,87722.0,87713.0,0.0114087]
[1766900914554,0.02457438,87721.0,87713.0,0.0114087]
[1766900914750,0.15404,87725.0,87713.0,0.0114087]
[1766900915049,0.0245744,87724.0,87713.0,0.0114087]
[1766900915356,0.0245744,87723.0,87713.0,0.0114087]
[1766900915554,0.0245744,87722.0,87713.0,0.0114087]
[1766900915755,0.0245744,87721.0,87713.0,0.0114087]
[1766900915953,0.0245744,87720.0,87713.0,0.0114087]
[1766900916151,0.0245744,87719.0,87713.0,0.0114087]
[1766900916351,0.15404,87725.0,87713.0,0.0114087]
[1766900916551,0.0245744,87724.0,87713.0,0.0114087]
[1766900916854,0.0245744,87723.0,87713.0,0.0114087]
[1766900917055,0.0245744,87722.0,87713.0,0.0114087]
[1766900917255,0.02310917,87721.0,87713.0,0.0114087]
[1766900917455,0.15404,87725.0,87713.0,0.0114087]
[1766900917859,0.00017101,87726.0,87713.0,0.0114087]
[1766900918157,0.05708,87725.0,87713.0,0.0114087]
[1766900921152,0.00017101,87726.0,87713.0,0.0114087]
[1766900921454,0.05708,87725.0,87710.0,0.11451847]
[1766900922254,0.05708,87725.0,87713.0,0.0114087]
[1766900922659,0.05708,87725.0,87710.0,0.10592717]
[1766900923258,0.05708,87725.0,87713.0,0.0114087]
[1766900926870,0.03708,87725.0,87713.0,0.0114087]
[1766900927870,0.05708,87724.0,87713.0,0.0114087]
[1766900929170,0.02456798,87723.0,87713.0,0.0114087]
[1766900929371,0.02456798,87722.0,87713.0,0.0114087]
[1766900929571,0.02456798,87721.0,87715.0,0.0114084]
[1766900929767,9e-08,87720.0,87717.0,0.0114082]
[1766900929967,0.05708,87722.0,87717.0,0.0114082]
[1766900930362,0.05708,87722.0,87714.0,0.0114086]
[1766900934778,0.05708,87722.0,87716.0,0.0114083]
[1766900934980,0.03708,87722.0,87716.0,0.0114083]
[1766900935278,0.05708,87722.0,87718.0,0.0114081]
[1766900935473,0.00017101,87726.0,87718.0,0.0114081]
[1766900935680,0.05708,87723.0,87718.0,0.0114081]
[1766900938683,0.05708,87723.0,87706.0,0.15404]
[1766900938879,0.00859192,87722.0,87706.0,0.15404]
[1766900940280,0.05708,87723.0,87706.0,0.15404]
[1766900940477,0.00859192,87722.0,87706.0,0.15404]
[1766900941284,0.05708,87723.0,87714.0,0.0114085]
[1766900941486,0.00859192,87722.0,87714.0,0.0114085]
[1766900941782,0.02445684,87721.0,87714.0,0.0114085]
[1766900941974,0.05708,87723.0,87714.0,0.0114085]
[1766900942175,0.02445684,87722.0,87714.0,0.0114085]
[1766900942371,0.00445684,87721.0,87714.0,0.0114085]
[1766900942574,0.05708,87723.0,87714.0,0.0114085]
[1766900942785,0.00859192,87720.0,87714.0,0.0114085]
[1766900943279,0.05708,87723.0,87714.0,0.0114085]
[1766900943584,0.00859192,87722.0,87712.0,0.0114088]
[1766900945684,0.05708,87724.0,87706.0,0.1454488]
[1766900945882,0.00859192,87721.0,87706.0,0.1454488]
[1766900947192,0.00859192,87721.0,87711.0,0.0114089]
[1766900947597,0.05708,87724.0,87711.0,0.0114089]
[1766900947795,0.00859192,87723.0,87711.0,0.0114089]
[1766900948290,0.05708,87724.0,87711.0,0.0114089]
[1766900948491,0.00859192,87723.0,87711.0,0.0114089]
[1766900948798,0.05708,87724.0,87711.0,0.0114089]
[1766900949097,0.03708,87724.0,87711.0,0.0114089]
[1766900950199,0.03708,87724.0,87713.0,0.0114087]
[1766900950400,0.00859192,87723.0,87713.0,0.0114087]
[1766900950799,0.03708,87724.0,87713.0,0.0114087]
[1766900950999,0.00859192,87723.0,87713.0,0.0114087]
[1766900951598,0.03708,87724.0,87713.0,0.0114087]
[1766900951796,0.00859192,87723.0,87713.0,0.0114087]
[1766900952199,0.03708,87724.0,87713.0,0.0114087]
[1766900952397,0.00859192,87723.0,87713.0,0.0114087]
[1766900952804,0.00859192,87722.0,87706.0,0.1368575]
[1766900954202,0.00859192,87722.0,87713.0,0.0114087]
[1766900954701,0.03708,87724.0,87713.0,0.0114087]
[1766900954901,0.02408926,87723.0,87713.0,0.0114087]
[1766900955101,0.02408926,87722.0,87713.0,0.0114087]
[1766900955306,0.03708,87724.0,87713.0,0.0114087]
[1766900955604,0.02408962,87723.0,87713.0,0.0114087]
[1766900955803,0.02408962,87722.0,87713.0,0.0114087]
[1766900956006,0.03708,87724.0,87713.0,0.0114087]
[1766900956304,0.02408962,87723.0,87713.0,0.0114087]
[1766900956503,0.02408962,87722.0,87713.0,0.0114087]
[1766900956804,0.03708,87724.0,87713.0,0.0114087]
[1766900957006,0.02408858,87723.0,87713.0,0.0114087]
[1766900957201,0.02408858,87722.0,87713.0,0.0114087]
[1766900957409,0.03708,87724.0,87713.0,0.0114087]
[1766900957607,0.02408893,87723.0,87713.0,0.0114087]
[1766900957909,0.00408893,87722.0,87713.0,0.0114087]
[1766900958108,0.03708,87724.0,87713.0,0.0114087]
[1766900961211,0.03708,87724.0,87715.0,0.0114084]
[1766900961712,0.00859192,87723.0,87706.0,0.1368575]
[1766900962010,0.00859192,87723.0,87703.0,0.06152567]
[1766900962209,0.0114079,87720.0,87702.0,0.0114101]
[1766900962515,0.0114079,87720.0,87702.0,0.12540983]
[1766900962716,0.0114079,87720.0,87704.0,0.0114099]
[1766900962911,0.00859192,87719.0,87704.0,0.0114099]
[1766900963707,0.0114081,87718.0,87701.0,0.0684903]
[1766900963911,0.03708,87724.0,87701.0,0.05708]
[1766900964105,0.0114093,87709.0,87700.0,1.01e-06]
[1766900964305,0.0114092,87710.0,87699.0,5e-07]
[1766900964916,0.0484892,87713.0,87699.0,5e-07]
[1766900965312,0.0114096,87707.0,87697.0,1.51e-06]
[1766900965517,0.0114099,87704.0,87697.0,1.51e-06]
[1766900965818,0.0114099,87704.0,87691.0,0.07896]
[1766900969324,0.0114099,87704.0,87691.0,0.05896]
[1766900970521,0.00017101,87706.0,87691.0,0.05896]
[1766900972823,0.08854061,87708.0,87691.0,0.05896]
[1766900973326,0.0114096,87707.0,87689.0,0.01158281]
[1766900973929,0.01158061,87707.0,87689.0,0.01158281]
[1766900974129,0.01158061,87707.0,87691.0,0.0114115]
[1766900975425,0.00017101,87707.0,87691.0,0.0114115]
[1766900976331,0.00017101,87707.0,87688.0,0.04866251]
[1766900977228,0.00017101,87707.0,87691.0,0.0114115]
[1766900978836,0.0114097,87706.0,87691.0,0.0114115]
[1766900979731,0.08012132,87708.0,87691.0,0.0114115]
[1766900980229,0.0114097,87706.0,87691.0,0.0114115]
[1766900982034,0.0114097,87706.0,87688.0,0.04024502]
[1766900982237,0.0114097,87706.0,87691.0,0.0114115]
[1766900982935,0.00017101,87707.0,87691.0,0.0114115]
[1766900983131,0.00017101,87707.0,87693.0,0.0114113]
[1766900986139,0.06029233,87708.0,87693.0,0.0114113]
[1766900989741,0.06029233,87708.0,87690.0,0.00017101]
[1766900990233,0.00017101,87709.0,87697.0,0.0114107]
[1766900990636,0.00017101,87709.0,87701.0,0.0114102]
[1766900992535,0.00017101,87709.0,87698.0,0.0114107]
[1766900993339,0.0242631,87708.0,87698.0,0.0114107]
[1766900993635,0.00017101,87709.0,87698.0,0.0114107]
[1766900993829,0.0242631,87708.0,87698.0,0.0114107]
[1766900994035,0.05708,87713.0,87700.0,0.0114103]
[1766900994540,0.04708,87713.0,87700.0,0.0114103]
[1766901003642,0.04708,87713.0,87697.0,0.0114108]
[1766901005050,0.04708,87713.0,87699.0,0.0114105]
[1766901005947,0.02408081,87712.0,87699.0,0.0114105]
[1766901006148,0.02408081,87711.0,87699.0,0.0114105]
[1766901006349,0.02408081,87710.0,87699.0,0.0114105]
[1766901006549,0.02408081,87709.0,87699.0,0.0114105]
[1766901006846,0.02408081,87708.0,87699.0,0.0114105]
[1766901007047,0.04708,87713.0,87699.0,0.0114105]
[1766901007247,0.02408076,87712.0,87699.0,0.0114105]
[1766901007448,0.02408076,87711.0,87699.0,0.0114105]
[1766901007649,0.02408076,87710.0,87699.0,0.0114105]
[1766901007948,0.02408076,87709.0,87699.0,0.0114105]
[1766901008150,0.02408076,87708.0,87699.0,0.0114105]
[1766901008451,0.04708,87713.0,87699.0,0.0114105]
[1766901008646,0.02408084,87712.0,87699.0,0.0114105]
[1766901008850,0.02408084,87711.0,87699.0,0.0114105]
[1766901009146,0.02408084,87710.0,87699.0,0.0114105]
[1766901009348,0.02408084,87709.0,87699.0,0.0114105]
[1766901009546,0.02408084,87708.0,87699.0,0.0114105]
[1766901009749,0.04708,87713.0,87699.0,0.0114105]
[1766901009957,0.03548987,87712.0,87696.0,0.0114109]
[1766901010149,0.02408097,87711.0,87696.0,0.0114109]
[1766901010348,0.02408097,87710.0,87696.0,0.0114109]
[1766901010547,0.0114089,87712.0,87696.0,0.0114109]
[1766901010852,0.02408103,87711.0,87696.0,0.0114109]
[1766901011054,0.02408103,87710.0,87696.0,0.0114109]
[1766901011260,0.0114089,87712.0,87696.0,0.0114109]
[1766901011554,0.02408127,87711.0,87696.0,0.0114109]
[1766901011755,0.02408127,87710.0,87696.0,0.0114109]
[1766901011941,0.0114089,87712.0,87696.0,0.0114109]
[1766901012141,0.02408122,87711.0,87696.0,0.0114109]
[1766901012348,0.02408122,87710.0,87696.0,0.0114109]
[1766901012550,0.0114089,87712.0,87696.0,0.0114109]
[1766901012844,0.02408155,87711.0,87696.0,0.0114109]
[1766901013043,0.02408155,87710.0,87696.0,0.0114109]
[1766901013249,0.0114089,87712.0,87696.0,0.0114109]
[1766901013447,0.02408187,87711.0,87696.0,0.0114109]
[1766901013642,0.02408187,87710.0,87698.0,0.0114107]
[1766901013853,0.04708,87713.0,87698.0,0.0114107]
[1766901014042,0.02408189,87712.0,87698.0,0.0114107]
[1766901014242,0.02408189,87711.0,87698.0,0.0114107]
[1766901014439,0.01157961,87715.0,87700.0,0.12596335]
[1766901014440,0.02408189,87710.0,87700.0,0.12596335]
[1766901014650,0.05708,87712.0,87700.0,0.11455295]
[1766901016355,0.05708,87712.0,87702.0,0.0114101]
[1766901021453,0.05708,87714.0,87700.0,0.11455295]
[1766901021858,0.05708,87714.0,87703.0,0.01141]
[1766901026663,0.02402928,87713.0,87703.0,0.01141]
[1766901026962,0.02402928,87712.0,87703.0,0.01141]
[1766901027166,0.02402928,87711.0,87703.0,0.01141]
[1766901027358,0.05708,87714.0,87703.0,0.01141]
[1766901027557,0.02402871,87713.0,87703.0,0.01141]
[1766901027766,0.02402871,87712.0,87703.0,0.01141]
[1766901027970,0.02402871,87711.0,87703.0,0.01141]
[1766901028167,0.05708,87714.0,87703.0,0.01141]
[1766901028369,0.02402856,87713.0,87703.0,0.01141]
[1766901028569,0.02402856,87712.0,87703.0,0.01141]
[1766901028871,0.02402856,87711.0,87703.0,0.01141]
[1766901029171,0.05708,87714.0,87703.0,0.01141]
[1766901029363,0.02402805,87713.0,87703.0,0.01141]
[1766901029563,0.02402805,87712.0,87703.0,0.01141]
[1766901029763,0.02402805,87711.0,87703.0,0.01141]
[1766901029972,0.05708,87714.0,87703.0,0.01141]
[1766901030170,0.02402777,87713.0,87703.0,0.01141]
[1766901030469,0.02402777,87712.0,87703.0,0.01141]
[1766901030671,0.02402777,87711.0,87703.0,0.01141]
[1766901030876,0.05708,87714.0,87703.0,0.01141]
[1766901031068,0.02402824,87713.0,87703.0,0.01141]
[1766901031269,0.02402824,87712.0,87703.0,0.01141]
[1766901031572,0.05708,87714.0,87703.0,0.01141]
[1766901031573,0.02402824,87711.0,87703.0,0.01141]
[1766901031773,0.05708,87714.0,87703.0,0.01141]
[1766901031970,0.02402801,87713.0,87703.0,0.01141]
[1766901032169,0.02402801,87712.0,87703.0,0.01141]
[1766901032369,0.02402801,87711.0,87703.0,0.01141]
[1766901032572,0.05708,87714.0,87703.0,0.01141]
[1766901032770,0.0240278,87713.0,87703.0,0.01141]
[1766901032976,0.0240278,87712.0,87703.0,0.01141]
[1766901033174,0.0240278,87711.0,87703.0,0.01141]
[1766901033375,0.05708,87714.0,87703.0,0.01141]
[1766901033576,0.02402764,87713.0,87703.0,0.01141]
[1766901033768,0.02402764,87712.0,87703.0,0.01141]
[1766901033969,0.02402764,87711.0,87703.0,0.01141]
[1766901034169,0.05708,87714.0,87703.0,0.01141]
[1766901034369,0.02402164,87713.0,87703.0,0.01141]
[1766901034569,0.02402164,87712.0,87703.0,0.01141]
[1766901034771,0.02402164,87711.0,87700.0,0.0114103]
[1766901034971,0.05708,87714.0,87700.0,0.0114103]
[1766901035173,0.02402153,87713.0,87700.0,0.0114103]
[1766901035369,0.02402153,87712.0,87700.0,0.0114103]
[1766901035669,0.02402153,87711.0,87700.0,0.0114103]
[1766901035871,0.05708,87714.0,87700.0,0.0114103]
[1766901036071,0.02402149,87713.0,87700.0,0.0114103]
[1766901036271,0.02402149,87712.0,87700.0,0.0114103]
[1766901036471,0.02402149,87711.0,87700.0,0.0114103]
[1766901036671,0.05708,87714.0,87700.0,0.0114103]
[1766901036876,0.02402152,87713.0,87700.0,0.0114103]
[1766901037075,0.02402152,87712.0,87700.0,0.0114103]
[1766901037278,0.02402152,87711.0,87700.0,0.0114103]
[1766901037475,0.05708,87714.0,87700.0,0.0114103]
[1766901037678,0.02402157,87713.0,87700.0,0.0114103]
[1766901037876,0.02402157,87712.0,87700.0,0.0114103]
[1766901038076,0.02402157,87711.0,87700.0,0.0114103]
[1766901038276,0.05708,87714.0,87700.0,0.0114103]
[1766901038480,0.02402159,87713.0,87700.0,0.0114103]
[1766901038780,0.02402159,87712.0,87700.0,0.0114103]